Workbook

Sheet InputSheet
A1: Parameter | B1: Units | C1: Type | D1: Default | E1: *selected* | F1: end
A2: Rail Name | C2: Req | E2: Example
A3: Part Number | C3: Req | E3: TPSM843620
A4: Vin_min | B4: V | C4: Opt | D4: Vin_nom*0.8 | E4: 11
A5: Vin_nom | B5: V | C5: Req | E5: 12 | G5: Sheet Descriptions:
A6: Vin_max | B6: V | C6: Opt | D6: Vin_nom*1.1 | E6: 13 | G6: InputSheet = sheet with simplified input for checking component values with the macros described below
A7: Vout | B7: V | C7: Req | E7: 1 | G7: DeviceCalculator = sheet where all calculations are done. This sheet can be used by itself to select or check component values.
A8: Iout | B8: A | C8: Opt | D8: Io_max_IC | E8: 6
A9: dVo_trans | C9: Opt | D9: Vout*0.03 | E9: 0.03 | G9: Macro Directions:
A10: dVo_dc | C10: Opt | D10: Vout*0.01 | E10: 0.01 | G10: Check/Calculate Selected Column
A11: Io_step | B11: A | C11: Opt | D11: Iout*0.5 | E11: 3 | G11: Select any cell in the column of the design you would like to check.
A12: R_fsel | C12: Opt | D12: R_fsel_rec | E12: 11.8 | G12: Click on the Check/Calculate to send the input values to the DeviceCalculator worksheet.
A13: fsw_select | C13: Calc | E13: 1000 | G13: The calculated results on the DeviceCalculator worksheet are then pulled back to this sheet to check the component values used.
A14: N_Cout_cer | C14: Opt | D14: 1 | E14: 2
A15: Cout_single_cer | B15: mΩ | C15: Opt | D15: Cout_min | E15: 100 | G15: Pull Values from DeviceCalculator Sheet
A16: Cer_derating | C16: Opt | D16: 0.8 | E16: 0.8 | G16: The DeviceCalculator worksheet has more details to aid in the design.
A17: ESR_single_cer | B17: µF | C17: Opt | D17: 1 | E17: 1 | G17: Updates to the design can be mode in the DeviceCalculator sheet.
A18: N_Cout_bulk | C18: Opt | D18: 0 | E18: 0 | G18: After making updates, click on Pull Values to use the values on the DeviceCalculator sheet and check them.
A19: Cout_single_bulk | B19: µF | C19: Opt | D19: 0.1 | E19: 0
A20: ESR_single_bulk | B20: mΩ | C20: Opt | D20: 1 | E20: 0 | G20: Check/Calculate All Columns
A21: Cout | B21: µF | C21: Calc | E21: 160.001 | G21: This will run Check/Calculate Selected Column on all designs
A22: Vo_trans | B22: mV | C22: Calc | E22: 29.84155183
A23: Vo_overshoot | B23: mV | C23: Calc | E23: 13.21866738
A24: Vo_ripple | B24: mV | C24: Calc | E24: 2.733173031
A25: Vi_ripple_perc | C25: Opt | D25: 0.04 | E25: 0.04
A26: Cin | B26: µF | C26: Opt | D26: Cin_min | E26: 20
A27: Cin_derating | C27: Opt | D27: 0.5
A28: Vi_ripple | B28: mV | C28: Calc | E28: 21.19579617
A29: Rfb_b | B29: kΩ | C29: Opt | D29: Rfb_b_rec | E29: 4.99
A30: Rfb_t | B30: kΩ | C30: Opt | D30: Rfb_t_std | E30: 4.99
A31: Vout_calc | B31: V | C31: Calc | E31: 1
A32: Cff | B32: pF | C32: Opt | D32: Cff_rec_std | E32: 22
A33: Rff | B33: kΩ | C33: Opt | D33: Rff_rec_std | E33: 0
A34: R_mode | B34: kΩ | C34: Opt | D34: R_mode_rec | E34: 2.21
A35: I_lim_sel | C35: Calc | E35: High
A36: Ramp_sel | B36: pF | C36: Calc | E36: 1
A37: SS_sel | B37: ms | C37: Calc | E37: 1
A38: Ren_t | B38: kΩ | C38: Opt | D38: 0 | E38: 0
A39: Ren_b | B39: kΩ | C39: Opt | D39: =10^4 -> 10000 | E39: 0
A40: Vstart_typ | B40: V | C40: Calc
A41: Vstop_typ | B41: V | C41: Calc
A42: Rboot | B42: Ω | C42: Opt | D42: Rboot_rec
A43: Rpg | B43: kΩ | C43: Opt | D43: Rpg_rec | E43: 100
A44: Rfsel_check | C44: Check | E44: Pass
A45: Lout_check | C45: Check | E45: Pass
A46: Cout_check | C46: Check | E46: Pass
A47: Cin_check | C47: Check | E47: Pass
A48: FB_network_check | C48: Check | E48: Caution: Check Cff. Selected value is 0.2× the recommended value. Caution: If not already included, recommend adding a 0-Ohm placeholder for Rff. This can help improve load regulation in case of non-ideal AGND to PGND connection in the PCB layout. Based on input Rfb_t, suggested value is 0.25kOhm.
A49: Rmode_check | C49: Check | E49: Pass
A50: EN_divider_check | C50: Check | E50: Pass
A51: Cbp_Rpg_check | C51: Check | E51: Pass

Sheet DeviceCalculator
B1: Design Calculations | J1: Key
B2: Parameter | C2: Input | D2: Recommended | E2: Selected Value | F2: Calculated with Selected Value | G2: Units | H2: Description | J2: User Entered Value
J3: Fixed IC Parameter
J4: Calculated Parameter
J5: Recommended Component Value
J6: Design Caution
J7: Design Warning
B8: Choose Device
B9: Part number | C9: TPSM843620 | H9: Select IC part number
B10: Vin_min_IC | C10: =VLOOKUP($C$9,partData!$A$3:$N$12,2,FALSE) -> 4 | G10: V | H10: IC rated minimum input voltage
B11: Vin_max_IC | C11: =VLOOKUP($C$9,partData!$A$3:$AAA$13,3,FALSE) -> 18 | G11: V | H11: IC rated maximum input voltage
B12: Vref | C12: =VLOOKUP($C$9,partData!$A$3:$AAA$13,9,FALSE) -> 0.5 | G12: V | H12: Internal voltage reference
B13: Io_max_IC | C13: =VLOOKUP($C$9,partData!$A$3:$AAA$13,4,FALSE) -> 6 | G13: A | H13: IC rated maximum output current
B14: EN_rise | C14: =VLOOKUP($C$9,partData!$A$3:$AAA$13,12,FALSE) -> 1.2 | G14: V | H14: EN rising voltage threshold
B15: EN_rise_max | C15: =VLOOKUP($C$9,partData!$A$3:$AAA$13,17,FALSE) -> 1.25 | G15: V | H15: EN rising voltage threshold (maximum spec)
B16: EN_fall | C16: =VLOOKUP($C$9,partData!$A$3:$AAA$13,13,FALSE) -> 1.1 | G16: V | H16: EN falling voltage threshold
B17: OC_high_min | C17: =VLOOKUP($C$9,partData!$A$3:$AAA$13,5,FALSE) -> 8.37 | G17: A | H17: Minimum peak current limit for High current limits
B18: OC_low_min | C18: =VLOOKUP($C$9,partData!$A$3:$AAA$13,6,FALSE) -> 4 | G18: A | H18: Minimum peak current limit for Low current limits
B19: ton_min_max | C19: =VLOOKUP($C$9,partData!$A$3:$AAA$13,7,FALSE) -> 40 | G19: ns | H19: Worst case minimum on-time
B20: toff_min_max | C20: =VLOOKUP($C$9,partData!$A$3:$AAA$13,8,FALSE) -> 140 | G20: ns | H20: Worst case minimum off-time
B21: Rdson_HS | C21: =VLOOKUP($C$9,partData!$A$3:$AAA$13,10,FALSE) -> 25 | G21: mΩ | H21: High-side FET Rdson
B22: Rdson_LS | C22: =VLOOKUP($C$9,partData!$A$3:$AAA$13,11,FALSE) -> 6.5 | G22: mΩ | H22: Low-side FET Rdson
B23: Lout | C23: =VLOOKUP($C$9,partData!$A$3:$AAA$13,19,FALSE) -> 0.47 | G23: uH | H23: Internal inductance
B24: L_DCR | C24: =VLOOKUP($C$9,partData!$A$3:$AAA$13,20,FALSE) -> 18 | G24: mΩ | H24: DC resistance of internal inductor
B25: L_Tol | C25: 20 | G25: % | H25: Tolerance of inductance for internal inductor
B26: Input System Parameters
B27: Vin_min | C27: 11 | G27: V | H27: Minimum input voltage
B28: Vin_nom | C28: 12 | G28: V | H28: Nominal input voltage
B29: Vin_nom | C29: 12 | G29: V | H29: Nominal input voltage
B30: Vin_max | C30: 13 | G30: V | H30: Maximum input voltage
B31: Vout | C31: 1 | G31: V | H31: Output voltage
B32: Iout | C32: 6 | G32: A | H32: Maximum output current
B33: E12 Resistor Values? | C33: No | H33: If using E12 resistor values, tolerance still must be 1%
B34: Select the Switching Frequency (FSEL pin)
B35: fsw_max_ton | D35: =IF((1/(ton_min_max*10^-9))*(Vout)/(Vin_max)*1/1.1>=2.2*10^6,2.2*10^6,(1/(ton_min_max*10^-9))*(Vout)/(Vin_max)*1/1.1)*10^-3 -> 1748.251748 | G35: kHz | H35: Maximum fsw limited by Vin_max and minimum on-time
B36: fsw_max_toff | D36: =IF((Vin_min-Vout-Iout*2*(L_DCR_m+Rdson_HS_Ohm))/(toff_min_max_sec*(Vin_min-Iout*2*(Rdson_HS_Ohm-Rdson_LS_Ohm)))*10^-3>=2200,2200,(Vin_min-Vout-Iout*2*(L_DCR_m+Rdson_HS_Ohm))/(toff_min_max_sec*(Vin_min-Iout*2*(Rdson_HS_Ohm-Rdson_LS_Ohm)))*10^-3) -> 2200 | G36: kHz | H36: Maximum fsw allowed limited by Vin_min and minimum off-time (Depends on inductor DCR and includes 2x multiplier on resistance for margin)
B37: fsw_rec | D37: =MIN(1000,VLOOKUP(TRUE,partData!K18:L22,2,FALSE)) -> 1000 | G37: kHz | H37: Recommended max fsw setting
B38: fsw_input | C38: 1000 | G38: kHz | H38: Select the fsw option
B39: R_fsel_rec | D39: =IF(C33="No", VLOOKUP(C38,partData!E17:G22,2,0), VLOOKUP(C38,partData!E17:G22,3,0)) -> 11.8 | G39: kΩ | H39: Recommended FSEL resistor for selected fsw
B40: R_fsel | E40: 11.8 | G40: kΩ | H40: Selected FSEL resistor value
B41: fsw_select | F41: =IF(OR(partData!J18:J22),VLOOKUP(TRUE,partData!J18:L22,3,FALSE),"Invalid R_fsel") -> 1000 | G41: kHz | H41: fsw with selected FSEL resistor
B42: Choose the Output Inductor (Lout)
B43: The inductance is selected based on a p-p ripple current target. Smaller L reduces solution size while larger L reduces AC loss.
B44: Kind | C44: 0.3 | H44: Target ripple/Iout ratio (typically between 0.2 to 0.4)
B45: L_target | D45: =(1/(0.3*Iout*(fsw_select/1000))*(((Vin_max-Vout)*Vout)/Vin_max)) -> 0.5128205128 | G45: µH | H45: Target inductor value
B46: L_min | D46: =((Vin_max-Vout)*Vout)/(Io_max_IC*0.5*Vin_max*fsw_select)*1000 -> 0.3076923077 | G46: µH | H46: Minimum recommended inductance (ripple = 50% Iout_max_IC)
B47: L_max | D47: =((Vin_max-Vout)*Vout)/(Io_max_IC*0.05*Vin_max*fsw_select)*1000 -> 3.076923077 | G47: µH | H47: Maximum recommended inductance (ripple = 5% Iout_max_IC)
B48: L_rec | D48: =MIN(MAX(D46,D45),D47) -> 0.5128205128 | G48: µH | H48: Recommended inductor value
B49: Lout | E49: =Lout -> 0.47 | G49: µH | H49: Selected inductance
B50: DCR | E50: =L_DCR -> 18 | G50: mΩ | H50: DC resistance of selected inductor
B51: Tol_L | E51: 0.2 | H51: Tolerance of inductance for selected inductor
B52: Iripple_max | F52: =1000*((Vin_max-Vout)*Vout)/(Lout*(1-20%)*Vin_max*fsw_select) -> 2.454991817 | G52: A | H52: Inductor ripple current at Vin_max (includes Tol_L, used for DC ripple calculations) (Red if >4A)
B53: Ipeak_max | F53: =Iout+($F52/2) -> 7.227495908 | G53: A | H53: Full load peak current at Vin_max
B54: Irms | F54: =SQRT(Iout^2+F52^2) -> 6.482822288 | G54: A | H54: Inductor rms current at Vin_max
B55: Iripple_min | F55: =1000*((Vin_min-Vout)*Vout)/($E49*(1+20%)*Vin_min*fsw_select) -> 1.611863314 | H55: Inductor ripple current at Vin_min (includes Tol_L)
B56: Ivalley | F56: =Iout-(F55/2) -> 5.194068343 | G56: A | H56: Full load valley current at Vin_min (used for I_lim calculations)
B57: Choose the Output Capacitor (Cout)
B58: The output capacitance is deteremind based on the output ripple, transient and stability requirements. These calculations do not support mixed type output capacitors.
B59: Io_step | C59: 3 | G59: A | H59: Iout load transient step
B60: dVo_perc | C60: 0.03 | H60: dVo percent
B61: dVo_trans | C61: 0.03 | G61: V | H61: Target Vout overshoot/undershoot after load step
B62: dVo_dc | C62: 0.01 | G62: V | H62: Target steady state Vout voltage ripple
B63: Cout_ripple | D63: =(1000*((Vin_max-Vout)*Vout)/(Lout*(1-0.2)*Vin_max*fsw_select))/(8*dVo_dc*fsw_Hz)*10^6 -> 30.68739771 | G63: µF | H63: Min Cout for DC ripple requirement (ignores ESR)
B64: Cout_trans | D64: =Io_step/(2*PI()*fsw_Hz/10*dVo_trans)*10^6 -> 159.1549431 | G64: µF | H64: Min Cout for transient requirement assuming fco = fsw/10
B65: Cout_overshoot | D65: =Lout*Io_step^2/(2*Vout*dVo_trans) -> 70.5 | G65: µF | H65: Min Cout for overshoot requirement based on inductor current slew rate
B66: Cout_undershoot | D66: =(Lout_H*Io_step^2/(2*(Vin_min-Vout)*dVo_trans) + Io_step*(1-Vout/Vin_min)*1/fsw_Hz/(dVo_trans))*10^6 -> 97.95909091 | G66: µF | H66: Min Cout for undershoot requirement based on inductor current slew rate
B67: Cout_stability | D67: =(30/(2*PI()*fsw_Hz))^2*1/Lout_H*1000000 -> 48.50482196 | G67: µF | H67: Min Cout for stability (f_LC < fsw/30)
B68: Cout_min | D68: =(MAX(D63:D67,15)) -> 159.1549431 | G68: µF | H68: Recommended min Cout (must include any derating due to DC/AC bias, temp and/or tolerance)
B69: Cout_max | D69: =(150/(2*PI()*fsw_Hz))^2*1/Lout_H*1000000 -> 1212.620549 | G69: µF | H69: Max Cout for stability (f_LC > fsw/150) (Exceeding this is typically ok but validation of loop stability is highly recommended)
B70: ESR_trans | D70: =dVo_trans/Io_step*1000 -> 10 | G70: mΩ | H70: Max ESR to meet load step transient requirement
B71: ESR_ripple | D71: =dVo_dc/(1000*((Vin_max-Vout)*Vout)/(Lout*(1-0.2)*Vin_max*fsw_select))*1000 -> 4.073333333 | G71: mΩ | H71: Max ESR to meet ripple requirement
B72: ESR_max | D72: =MIN(D70:D71) -> 4.073333333 | G72: mΩ
B73: N_Cout_cer | E73: 2 | H73: Number of output capacitors
B74: Cout_single_cer | E74: 100 | G74: µF | H74: Nominal value of single ceramic output capacitor
B75: Cer_derating | E75: 0.8 | H75: Remaining output capacitance after derating due to DC/AC bias, temp and/or tolerance
B76: ESR_single_cer | E76: 1 | G76: mΩ | H76: ESR of output single ceramic output capacitor
B77: Cout_cer_eff | F77: =Cout_single_cer*N_Cout_cer*Cer_derating -> 160 | G77: µF | H77: Effective Cout (If red, not enough capacitance)
B78: ESR_cer_eff | F78: =ESR_single_cer/N_Cout_cer -> 0.5 | G78: mΩ | H78: Effective ESR
B79: N_Cout_bulk | E79: 0 | H79: Number of Bulk Capacitors
B80: Cout_single_bulk | E80: 0 | G80: uF | H80: Nominal value of a Single Bulk/Polymer/Electrolytic Output Capacitor
B81: Bulk_derating | E81: 1 | H81: Percentage of Nominal Bulk Capacitance remaining after tolerance, temperature, and/or lifetime
B82: ESR_single_bulk | E82: 0 | G82: mΩ | H82: Single Bulk Capacitor ESR
B83: Cout_bulk_eff | F83: =IF(N_Cout_bulk=0,0.001,N_Cout_bulk*E80*Bulk_derating) -> 0.001 | G83: µF | H83: Total Bulk Output Capacitance
B84: ESR_bulk_eff | F84: =IF(N_Cout_bulk=0,10^9,E82/N_Cout_bulk) -> 1000000000 | G84: mΩ | H84: Effective Bulk Capacitance ESR
B85: Cout | F85: =Cout_bulk_eff+Cout_cer_eff -> 160.001 | G85: uF | H85: Total Bulk + Ceramic Output Capacitance
B86: f_LC | F86: =1/(2*PI()*SQRT(Lout_H*Cout_F))*0.001 -> 18.35311789 | G86: kHz | H86: LC resonant frequency
B87: fz_ESR_cer | F87: =IF(N_Cout_cer=0,10^6,1/(2*PI()*Cout_cer_eff_F*ESR_cer_eff_Ohm)*10^-3) -> 1989.436789 | G87: kHz | H87: Ceramic capacitor ESR zero frequency
B88: fz_ESR_bulk | F88: =IF(N_Cout_bulk=0,10^6,1/(2*PI()*Cout_bulk_eff_F*ESR_bulk_eff_Ohm)*10^-3) -> 1000000 | G88: kHz | H88: Bulk capacitor ESR zero frequency (if yellow, ESR zero may limit loop bandwidth)
B89: Transient response estimations with selected output caps
B90: fco_est | D90: =fsw_select/10 -> 100 | G90: kHz | H90: Loop bandwidth estimate of fsw_select/10
B91: Zcer_fco | F91: =(1/(2*PI()*fco_Hz*Cout_cer_eff_F)*10^3) -> 9.947183943 | G91: mΩ | H91: Estimated output cap impedance at fsw/10
B92: Zbulk_fco | F92: =SQRT((1/(2*PI()*fco_Hz*Cout_bulk_eff_F))^2+ESR_bulk_eff_Ohm^2)*10^3 -> 1000001267 | G92: mΩ | H92: Bulk capacitor impedance at fsw
B93: Zcout_fco | F93: =Zcer_fco*Zbulk_fco/(Zcer_fco+Zbulk_fco) -> 9.947183844 | G93: mΩ | H93: Combined output capacitor impedance at fsw
B94: Vo_trans | F94: =Io_step*Zcout_fco -> 29.84155183 | G94: mV | H94: Estimated transient overshoot/undershoot based on loop bandwidth estimate
B95: Vo_overshoot | F95: =(Lout_H*Io_step^2/(2*Vout*Cout_F))*1000 -> 13.21866738 | G95: mV | H95: Estimated overshoot based on inductor current slew rate
B96: DC output ripple estimations with selected output caps
B97: Zcer_fsw | F97: =SQRT((1/(2*PI()*fsw_Hz*Cout_cer_eff_F))^2+ESR_cer_eff_Ohm^2)*10^3 -> 1.113312483 | G97: mΩ | H97: Ceramic capacitor impdance at fsw
B98: Zbulk_fsw | F98: =SQRT((1/(2*PI()*fsw_Hz*Cout_bulk_eff_F))^2+ESR_bulk_eff_Ohm^2)*10^3 -> 1000000013 | G98: mΩ | H98: Bulk capacitor impedance at fsw
B99: Zcout_fsw | F99: =Zcer_fsw*Zbulk_fsw/(Zcer_fsw+Zbulk_fsw) -> 1.113312481 | G99: mΩ | H99: Combined output capacitor impedance at fsw
B100: Vo_ripple | F100: =(1000*((Vin_max-Vout)*Vout)/(Lout*(1-0.2)*Vin_max*fsw_select))*Zcout_fsw -> 2.733173031 | G100: mV | H100: Estimated capacitive + resistive DC ripple (ignores ESL)
B101: Choose the Input Capacitor (Cin)
B102: The input capacitance is deteremind based on the input ripple requirements. Additional bulk input capacitance may be needed for transients. 0.1µF high frequency bypass capacitors are also required.
B103: Vi_ripple_perc | C103: 0.04 | H103: Target DC input voltage ripple percentage
B104: Vi_ripple_rec | D104: =Vin_min*Vi_ripple_perc*1000 -> 440 | G104: mV | H104: Recommended DC input voltage ripple (based on Vin_min)
B105: Vi_ripple_target | C105: =D104 -> 440 | G105: mV | H105: Target DC input voltage ripple
B106: Cin_min | D106: =MAX(4.7,(Iout*0.25)/(Vi_ripple_target*fsw_select)*10^6) -> 4.7 | G106: µF | H106: Minimum input capacitance required (include derating)
B107: Cin | E107: 20 | G107: µF | H107: Effective input ceramic cap used (include derating)
B108: Vi_ripple | F108: =(Iout*Vout/Vin_max*(1-Vout/Vin_max))/((Cin+0.1)*fsw_select)*10^6 -> 21.19579617 | G108: mV | H108: Input DC ripple
B109: Iin_rms | F109: =Iout*SQRT(Vout/Vin_min*(Vin_min-Vout)/Vin_min) -> 1.724878724 | G109: A | H109: Input RMS current
B110: Determine feedback network values (FB resistor divider and Cff)
B111: Rfb_b_rec | D111: 4.99 | G111: kΩ | H111: Bottom feedback resistor (1k-20k recommended)
B112: Rfb_b | E112: 4.99 | G112: kΩ | H112: Selected bottom feedback resistor
B113: Rfb_t_target | D113: =Rfb_b*(Vout/Vref-1) -> 4.99 | G113: kΩ | H113: Calculated top resistor
B114: Rfb_t_std | D114: =(IF((10^(LOG(D113)-INT(LOG(D113)))*100)-VLOOKUP((10^(LOG(D113)-INT(LOG(D113)))*100),E96_s:E96_f,1)<VLOOKUP((10^(LOG(D113)-INT(LOG(D113)))*100),E96_s:E96_f,2)-(10^(LOG(D113)-INT(LOG(D113)))*100),VLOOKUP((10^(LOG(D113)-INT(LOG(D113)))*100),E96_s:E96_f,1),VLOOKUP((10^(LOG(D113)-INT(LOG(D113)))*100),E96_s:E96_f,2)))*10^INT(LOG(D113))/100 -> 4.99 | G114: kΩ | H114: Closest 1% standard resistor value
B115: Rfb_t | E115: 4.99 | G115: kΩ | H115: Selected top resistor
B116: Vout_calc | F116: =Vref*(1+Rfb_t/Rfb_b) -> 1 | G116: V | H116: Calculated Vout (yellow if not within 1% of target Vout)
B117: Cff_rec | D117: =1/(2*PI()*(fsw_select/4)*Rfb_t)*1000000 -> 127.5791127 | G117: pF | H117: Recommended feedforward cap value (fz_Cff = fsw/4)
B118: Cff_rec_std | D118: =IF(Cff_rec<10000,VLOOKUP((10^(LOG(Cff_rec)-INT(LOG(Cff_rec)))),c_s1:C_f1,1),VLOOKUP((10^(LOG(Cff_rec)-INT(LOG(Cff_rec)))),C_s2:C_f2,1))*10^INT(LOG(Cff_rec)) -> 120 | G118: pF | H118: Cpole recommended nearest standard value
B119: Cff | E119: 22 | G119: pF | H119: Selected feedforward cap value
B120: Rff_rec | D120: =Rfb_t/20 -> 0.2495 | G120: kΩ | H120: Recommended feedforward resistor
B121: Rff_rec_std | D121: =(IF((10^(LOG(D120)-INT(LOG(D120)))*100)-VLOOKUP((10^(LOG(D120)-INT(LOG(D120)))*100),E96_s:E96_f,1)<VLOOKUP((10^(LOG(D120)-INT(LOG(D120)))*100),E96_s:E96_f,2)-(10^(LOG(D120)-INT(LOG(D120)))*100),VLOOKUP((10^(LOG(D120)-INT(LOG(D120)))*100),E96_s:E96_f,1),VLOOKUP((10^(LOG(D120)-INT(LOG(D120)))*100),E96_s:E96_f,2)))*10^INT(LOG(D120))/100 -> 0.249 | G121: kΩ | H121: Selected feedforward resistor value
B122: Rff | E122: 0 | G122: kΩ | H122: Selected feedforward resistor value
B123: fz_cff | F123: =IF(Cff<>0,1/(2*PI()*Cff*0.000000001*(Rfb_t+Rff)*1000),"N/A") -> 1449.762644 | G123: kHz | H123: Frequency of zero added by the feedforward cap
B124: Select the Soft Start Time, Current Limit and Ramp (MODE pin)
B125: I_lim_rec | D125: =IF(Ipeak_max>OC_low_min, "High", "Low") -> High | H125: Recommended Ilim selection
B126: I_lim_tgt | C126: =D125 -> High | H126: Target Ilim
B127: fsw_div_fLC | D127: =IF(f_ESR_bulk>fsw_select/10,fsw_select/f_LC,fsw_select/(1/(2*PI()*SQRT(Lout_H*Cout_cer_eff_F))*10^-3)) -> 54.48665487 | H127: Used to set ramp recommendation
B128: Ramp_rec | D128: =partData!E33 -> 1 | G128: pF | H128: Recommended ramp selection
B129: Ramp_tgt | C129: =D128 -> 1 | G129: pF | H129: Target ramp
B130: Soft_start_time_tgt | C130: 1 | G130: ms | H130: Target soft start time
B131: R_mode_rec | D131: =IF(C33="No", VLOOKUP(CONCATENATE(C126, C129, C130),partData!N16:T40, 6, 0), VLOOKUP(CONCATENATE(C126, C129, C130),partData!N16:T40, 7, 0)) -> 2.21 | G131: kΩ | H131: Recommended MODE pin resistance value
B132: R_mode | E132: 2.21 | G132: kΩ | H132: Selected MODE pin resistance value
B133: I_lim_sel | F133: =IF(partData!Z$40,VLOOKUP(TRUE,partData!Z15:AC39,2,FALSE),"Invalid Rmode") -> High | H133: Selected Ilim
B134: Ramp_sel | F134: =IF(partData!Z$40,VLOOKUP(TRUE,partData!Z15:AC39,3,FALSE),"Invalid Rmode") -> 1 | G134: pF | H134: Selected ramp
B135: SS_sel | F135: =IF(partData!Z$40,VLOOKUP(TRUE,partData!Z15:AC39,4,FALSE),"Invalid Rmode") -> 1 | G135: ms | H135: Selected soft start time
B136: EN pin resistor divider
B137: Vstart | C137: 5 | G137: V | H137: UVLO startup voltage (Red if Vstart < 1.1*Vstop)
B138: UVLO_stop_rec_max | D138: =Vstart/1.1 -> 4.545454545 | G138: V | H138: Maximum recommended UVLO shutdown voltage. Limited by voltage hysteresis on EN pins.
B139: Vstop | C139: 4.5 | G139: V | H139: UVLO shutdown voltage (Red if Vstart < 1.1*Vstop)
B140: Ren_t_rec | D140: =(Vstart*(EN_fall/EN_rise)-Vstop)/(I_p1*(1-EN_fall/EN_rise)+I_h)/1000 -> 8.14995925 | G140: kΩ | H140: Calculated top resistor
B141: Ren_t_std | D141: =(IF((10^(LOG(D140)-INT(LOG(D140)))*100)-VLOOKUP((10^(LOG(D140)-INT(LOG(D140)))*100),E96_s:E96_f,1)<VLOOKUP((10^(LOG(D140)-INT(LOG(D140)))*100),E96_s:E96_f,2)-(10^(LOG(D140)-INT(LOG(D140)))*100),VLOOKUP((10^(LOG(D140)-INT(LOG(D140)))*100),E96_s:E96_f,1),VLOOKUP((10^(LOG(D140)-INT(LOG(D140)))*100),E96_s:E96_f,2)))*10^INT(LOG(D140))/100 -> 8.06 | G141: kΩ | H141: Closest 1% standard resistor value
B142: Ren_t | E142: 0 | G142: kΩ | H142: Selected bottom resistor
B143: Ren_b_calc | D143: =(Ren_t*EN_fall)/((Vstop-EN_fall)+Ren_t*I_p2)/1000 -> 0 | G143: kΩ | H143: Calculated top resistor
B144: Ren_b_std | D144: =(IF((10^(LOG(D143)-INT(LOG(D143)))*100)-VLOOKUP((10^(LOG(D143)-INT(LOG(D143)))*100),E96_s:E96_f,1)<VLOOKUP((10^(LOG(D143)-INT(LOG(D143)))*100),E96_s:E96_f,2)-(10^(LOG(D143)-INT(LOG(D143)))*100),VLOOKUP((10^(LOG(D143)-INT(LOG(D143)))*100),E96_s:E96_f,1),VLOOKUP((10^(LOG(D143)-INT(LOG(D143)))*100),E96_s:E96_f,2)))*10^INT(LOG(D143))/100 ->  | G144: kΩ | H144: Closest 1% standard resistor value
B145: Ren_b | E145: 0 | G145: kΩ | H145: Selected top resistor
B146: Vstart_typ | F146: =EN_rise+Ren_t*(EN_rise-I_p1*Ren_b)/Ren_b ->  | G146: V | H146: Estimated typical turn on voltage with selected resistors (Yellow if < Vin_min)
B147: Vstart_max | F147: =EN_rise_max+Ren_t*(EN_rise_max-I_p1*Ren_b)/Ren_b ->  | G147: V | H147: Estimated maximum turn on voltage with selected resistors (Yellow if < Vin_min)
B148: Vstop_typ | F148: =EN_fall-(Ren_t*(I_p1*Ren_b-EN_fall+I_h*Ren_b))/Ren_b ->  | G148: V | H148: Estimated typical turn off voltage with selected resistors
B149: Pen_divider | F149: =Vin_max*Vin_max/(Ren_b+Ren_t)*1000 ->  | G149: mW | H149: Power lost in EN divider at Vin_max
B150: VCC bypass capacitor, BOOT bypass capacitor, PGOOD resistor
B151: Cbp_rec | D151: 2.2 | G151: µF | H151: At least 1 µF required
B152: Cbp | E152: 2.2 | G152: µF | H152: Selected Cbp
B153: Rpg_rec | D153: 100 | G153: kΩ | H153: 10k-100k recommended
B154: Rpg | E154: 100 | G154: kΩ | H154: Selected Rpg

Sheet revisionNotes
A1: Date | B1: Change
A2: 2023-11-09 | B2: Initial Rev A release

Sheet Disclaimer
A1: Important notice and disclaimer
A2: TI PROVIDES TECHNICAL AND RELIABILITY DATA (INCLUDING DATASHEETS), DESIGN RESOURCES (INCLUDING REFERENCE DESIGNS), APPLICATION OR OTHER DESIGN ADVICE, WEB TOOLS, SAFETY INFORMATION, AND OTHER RESOURCES “AS IS” AND WITH ALL FAULTS, AND DISCLAIMS ALL WARRANTIES, EXPRESS AND IMPLIED, INCLUDING WITHOUT LIMITATION ANY IMPLIED WARRANTIES OF MERCHANTABILITY, FITNESS FOR A PARTICULAR PURPOSE OR NON-INFRINGEMENT OF THIRD PARTY INTELLECTUAL PROPERTY RIGHTS.
A3: These resources are intended for skilled developers designing with TI products. You are solely responsible for (1) selecting the appropriate TI products for your application, (2) designing, validating and testing your application, and (3) ensuring your application meets applicable standards, and any other safety, security, or other requirements.
A4: These resources are subject to change without notice. TI grants you permission to use these resources only for development of an application that uses the TI products described in the resource. Other reproduction and display of these resources is prohibited. No license is granted to any other TI intellectual property right or to any third party intellectual property right. TI disclaims responsibility for, and you will fully indemnify TI and its representatives against, any claims, damages, costs, losses, and liabilities arising out of your use of these resources.
A5: TI’s products are provided subject to TI’s Terms of Sale or other applicable terms available either on ti.com or provided in conjunction with such TI products. TI’s provision of these resources does not expand or otherwise alter TI’s applicable warranties or warranty disclaimers for TI products.
A6: TI objects to and rejects any additional or different terms you may have proposed.
A8: All information in this document is provided “AS IS” and “with all faults”, and is subject to TI’s Important Notice (http://www.ti.com/corp/docs/legal/important-notice.shtml)

Sheet partData (hidden)
A1: 1 | B1: 2 | C1: 3 | D1: 4 | E1: 5 | F1: 6 | G1: 7 | H1: 8 | I1: 9 | J1: 10 | K1: 11 | L1: 12 | M1: 13 | N1: 14 | O1: 15 | P1: 16 | Q1: 17 | R1: 18 | S1: 19 | T1: 20 | U1: 21 | V1: 22 | W1: 23 | X1: 24 | Y1: 25
A2: Part # | B2: VIN_min | C2: VIN_max | D2: Io,rated | E2: OC high min | F2: OC low min | G2: tonmin max | H2: toffmin max | I2: Vref | J2: R_HS | K2: R_LS | L2: EN_rise | M2: EN_fall | N2: I_p1 | O2: I_p2 | P2: I_h | Q2: EN_rise_max | S2: Lout | T2: DCR | U2: Tolerance
A3: TPSM843320 | B3: 4 | C3: 18 | D3: 3 | E3: 4 | F3: 2.6 | G3: 40 | H3: 140 | I3: 0.5 | J3: 25 | K3: 13.9 | L3: 1.2 | M3: 1.1 | N3: 1.5e-06 | O3: =0.0000116 -> 1.16e-05 | P3: =I_p2-I_p1 -> 1.01e-05 | Q3: 1.25 | S3: 1 | T3: 25 | U3: 0.2
A4: TPSM843620 | B4: 4 | C4: 18 | D4: 6 | E4: 8.37 | F4: 4 | G4: 40 | H4: 140 | I4: 0.5 | J4: 25 | K4: 6.5 | L4: 1.2 | M4: 1.1 | N4: 1.5e-06 | O4: =0.0000116 -> 1.16e-05 | P4: =I_p2-I_p1 -> 1.01e-05 | Q4: 1.25 | S4: 0.47 | T4: 18 | U4: 0.2
A5: TPSM843820 | B5: 4 | C5: 18 | D5: 8 | E5: 11.25 | F5: 8.37 | G5: 40 | H5: 140 | I5: 0.5 | J5: 25 | K5: 6.5 | L5: 1.2 | M5: 1.1 | N5: 1.5e-06 | O5: =0.0000116 -> 1.16e-05 | P5: =I_p2-I_p1 -> 1.01e-05 | Q5: 1.25 | S5: 0.22 | T5: 7 | U5: 0.2
S9: 1.01e-05 | Z9: No
Z10: Yes
U12: =R_mode -> 2.21
O14: Cur.lim | P14: Cramp | Q14: SS time | R14: # | S14: Res to GND | T14: E12 Series | U14: Error | V14: In range? | W14: E12 Par | X14: Error | Y14: In range?
N15: =CONCATENATE(O15, P15, Q15) -> High10.5 | O15: =AD$16 -> High | P15: =AE$16 -> 1 | Q15: =AF$16 -> 0.5 | R15: 1 | S15: 1.78 | T15: 1.8 | U15: =(T15-S15)/S15 -> 0.01123595506 | V15: =IF(U15>0,AND(R_mode>=S15,R_mode<=S15*(1+U15)),AND(R_mode<=S15,R_mode>=S15*(1+U15))) -> FALSE | W15: 1.8 | X15: =(W15-S15)/S15 -> 0.01123595506 | Y15: =IF(X15>0,AND(R_mode>=S15,R_mode<=S15*(1+X15)),AND(R_mode<=S15,R_mode>=S15*(1+X15))) -> FALSE | Z15: =OR(V15,Y15) -> FALSE | AA15: =O15 -> High | AB15: =P15 -> 1 | AC15: =Q15 -> 0.5 | AG15: =S15*(100+U15) -> 178.02
E16: Frequency selection table | H16: =R_fsel -> 11.8 | N16: High11 | O16: =AD$16 -> High | P16: 1 | Q16: =AF$17 -> 1 | R16: 2 | S16: 2.21 | T16: 2.2 | U16: =(T16-S16)/S16 -> -0.004524886878 | V16: TRUE | W16: 2.2 | X16: -0.004524886878 | Y16: TRUE | Z16: =OR(V16,Y16) -> TRUE | AA16: High | AB16: 1 | AC16: 1 | AD16: High | AE16: 1 | AF16: 0.5
E17: Freq(kHz) | F17: Res to GND | G17: E12 Res to GND | H17: Rfsel_min | I17: Rfsel_max | K17: =MIN(fsw_max_ton,fsw_max_toff) -> 1748.251748 | N17: High12 | O17: High | P17: 1 | Q17: =AF$18 -> 2 | R17: 3 | S17: 2.74 | T17: 2.7 | U17: -0.01459854015 | V17: FALSE | W17: 2.7 | X17: -0.01459854015 | Y17: FALSE | Z17: FALSE | AA17: High | AB17: 1 | AC17: 2 | AD17: Low | AE17: 2 | AF17: 1
A18: Top Resistor: | B18: GND | C18: Connect to GND | E18: 500 | F18: 24.3 | G18: 27 | H18: 24 | I18: 1000000 | J18: =AND(R_fsel>=H18,R_fsel<=I18) -> FALSE | K18: =K$17<L19 -> FALSE | L18: =E18 -> 500 | N18: High14 | O18: High | P18: 1 | Q18: =AF$19 -> 4 | R18: 4 | S18: 3.32 | T18: 3.3 | U18: -0.006024096386 | V18: FALSE | W18: 3.3 | X18: -0.006024096386 | Y18: FALSE | Z18: FALSE | AA18: High | AB18: 1 | AC18: 4 | AE18: 4 | AF18: 2
A19: Bottom Resistor: | B19: PGOOD | C19: Connect to PGOOD | E19: 750 | F19: 17.4 | G19: 18 | H19: 17.4 | I19: 18 | J19: =AND(R_fsel>=H19,R_fsel<=I19) -> FALSE | K19: =K$17<L20 -> FALSE | L19: =E19 -> 750 | N19: High20.5 | O19: =AD$16 -> High | P19: =AE$17 -> 2 | Q19: =AF$16 -> 0.5 | R19: 5 | S19: 4.02 | T19: 4 | U19: -0.004975124378 | V19: FALSE | W19: 4 | X19: -0.004975124378 | Y19: FALSE | Z19: FALSE | AA19: High | AB19: 2 | AC19: 0.5 | AF19: 4
A20: =CONCATENATE(A18, DeviceCalculator!D113) -> Top Resistor: 4.99 | B20: VREG | C20: Connect to VREG | E20: 1000 | F20: 11.8 | G20: 12 | H20: 11.8 | I20: 12.1 | J20: =AND(R_fsel>=H20,R_fsel<=I20) -> TRUE | K20: =K$17<L21 -> FALSE | L20: 1000 | N20: High21 | O20: High | P20: =AE$17 -> 2 | Q20: =AF$17 -> 1 | R20: 6 | S20: 4.87 | T20: 4.9 | U20: 0.006160164271 | V20: FALSE | W20: =8.2*12/(8.2+12) -> 4.871287129 | X20: 0.000264297477 | Y20: FALSE | Z20: FALSE | AA20: High | AB20: 2 | AC20: 1
A21: =CONCATENATE(A19, DeviceCalculator!D111) -> Bottom Resistor: 4.99 | B21: Open | C21: Leave Floating | E21: 1500 | F21: 8.06 | G21: 8.2 | H21: 8.06 | I21: 8.25 | J21: =AND(R_fsel>=H21,R_fsel<=I21) -> FALSE | K21: =K$17<L22 -> TRUE | L21: 1500 | N21: High22 | O21: High | P21: =AE$17 -> 2 | Q21: =AF$18 -> 2 | R21: 7 | S21: 5.9 | T21: 5.9 | U21: 0 | V21: FALSE | W21: =T21 -> 5.9 | X21: 0 | Y21: FALSE | Z21: FALSE | AA21: High | AB21: 2 | AC21: 2
E22: 2200 | F22: 4.99 | G22: 4.7 | H22: 0 | I22: 5.11 | J22: =AND(R_fsel>=H22,R_fsel<=I22) -> FALSE | K22: =K17=L22 -> FALSE | L22: 2200 | N22: High24 | O22: High | P22: 2 | Q22: =AF$19 -> 4 | R22: 8 | S22: 7.32 | T22: 7.2 | U22: -0.01639344262 | V22: FALSE | W22: 7.32 | X22: 0 | Y22: FALSE | Z22: FALSE | AA22: High | AB22: 2 | AC22: 4
J23: =AND(J18:J22) -> FALSE | N23: High40.5 | O23: High | P23: =AE$18 -> 4 | Q23: =AF$16 -> 0.5 | R23: 9 | S23: 9.09 | T23: 9 | U23: -0.009900990099 | V23: FALSE | W23: 9.09 | X23: 0 | Y23: FALSE | Z23: FALSE | AA23: High | AB23: 4 | AC23: 0.5
G24: Recommended fsw | N24: High41 | O24: High | P24: =AE$18 -> 4 | Q24: =AF$17 -> 1 | R24: 10 | S24: 11.3 | T24: 11.2 | U24: -0.008849557522 | V24: FALSE | W24: 11.25 | X24: -0.004424778761 | Y24: FALSE | Z24: FALSE | AA24: High | AB24: 4 | AC24: 1
N25: High42 | O25: High | P25: =AE$18 -> 4 | Q25: =AF$18 -> 2 | R25: 11 | S25: 14.3 | T25: 14.2 | U25: -0.006993006993 | V25: FALSE | W25: 14.23 | X25: -0.004895104895 | Y25: FALSE | Z25: FALSE | AA25: High | AB25: 4 | AC25: 2
N26: High44 | O26: High | P26: =AE$18 -> 4 | Q26: =AF$19 -> 4 | R26: 12 | S26: 18.2 | T26: 18 | U26: -0.01098901099 | V26: FALSE | W26: 18 | X26: -0.01098901099 | Y26: FALSE | Z26: FALSE | AA26: High | AB26: 4 | AC26: 4
N27: Low10.5 | O27: =AD$17 -> Low | P27: =AE$16 -> 1 | Q27: =AF$16 -> 0.5 | R27: 13 | S27: 22.1 | T27: 22.1 | U27: 0 | V27: FALSE | W27: 22.04 | X27: -0.002714932127 | Y27: FALSE | Z27: FALSE | AA27: Low | AB27: 1 | AC27: 0.5
N28: Low11 | O28: Low | P28: =AE$16 -> 1 | Q28: =AF$17 -> 1 | R28: 14 | S28: 26.7 | T28: 27 | U28: 0.01123595506 | V28: FALSE | W28: 27 | X28: 0.01123595506 | Y28: FALSE | Z28: FALSE | AA28: Low | AB28: 1 | AC28: 1
D29: Original calculation | E29: Calculation with added margin | N29: Low12 | O29: Low | P29: =AE$16 -> 1 | Q29: =AF$18 -> 2 | R29: 15 | S29: 33.2 | T29: 33.18 | U29: -0.0006024096386 | V29: FALSE | W29: 33.13 | X29: -0.002108433735 | Y29: FALSE | Z29: FALSE | AA29: Low | AB29: 1 | AC29: 2
A30: Ramp4 | B30: y=-0.075x+6.4 | D30: =-0.075*$B$36+6.4 -> 2.313500885 | E30: =-0.075/1.2*$B$36+6.4 -> 2.994584071 | N30: Low14 | O30: Low | P30: =AE$16 -> 1 | Q30: =AF$19 -> 4 | R30: 16 | S30: 40.2 | T30: 40.2 | U30: 0 | V30: FALSE | W30: 40.2 | X30: 0 | Y30: FALSE | Z30: FALSE | AA30: Low | AB30: 1 | AC30: 4
A31: Ramp2 | B31: y=-0.07x+4.6667 | D31: =-0.07*$B$36+4.667 -> 0.8529341592 | E31: =-0.07/1.1*$B$36+4.667 -> 1.199667417 | N31: Low20.5 | O31: Low | P31: =AE$17 -> 2 | Q31: =AF$16 -> 0.5 | R31: 17 | S31: 49.9 | T31: 49.7 | U31: -0.004008016032 | V31: FALSE | W31: 50 | X31: 0.002004008016 | Y31: FALSE | Z31: FALSE | AA31: Low | AB31: 2 | AC31: 0.5
A32: Ramp1 | B32: y=-0.0591x+2.978 | D32: =-0.0591*$B$36+2.978 -> -0.2421613027 | E32: =-0.0591/1.05*$B$36+2.978 -> -0.08882028828 | N32: Low21 | O32: Low | P32: =AE$17 -> 2 | Q32: =AF$17 -> 1 | R32: 18 | S32: 60.4 | T32: 60.7 | U32: 0.004966887417 | V32: FALSE | W32: 60.64 | X32: 0.003973509934 | Y32: FALSE | Z32: FALSE | AA32: Low | AB32: 2 | AC32: 1
C33: ramp= | D33: =IF(Vout>=D30,AE18,IF(AND(Vout>=D31, Vout<D30), AE17, IF(AND(Vout>=D32,Vout<D31),AE16,"Unstable"))) -> 2 | E33: =IF(Vout>=E30,AE18,IF(AND(Vout>=E31, Vout<E30), AE17, IF(AND(Vout>=E32,Vout<E31),AE16,"Unstable"))) -> 1 | N33: Low22 | O33: Low | P33: =AE$17 -> 2 | Q33: =AF$18 -> 2 | R33: 19 | S33: 76.8 | T33: 76.2 | U33: -0.0078125 | V33: FALSE | W33: 76.74 | X33: -0.00078125 | Y33: FALSE | Z33: FALSE | AA33: Low | AB33: 2 | AC33: 2
N34: Low24 | O34: Low | P34: =AE$17 -> 2 | Q34: =AF$19 -> 4 | R34: 20 | S34: 102 | T34: 100 | U34: -0.01960784314 | V34: FALSE | W34: 100 | X34: -0.01960784314 | Y34: FALSE | Z34: FALSE | AA34: Low | AB34: 2 | AC34: 4
A35: FLC | B35: =1/(2*PI()*SQRT(([0]!Lout*[0]!Cout*10^-12))) -> 18353.11789 | N35: Low40.5 | O35: Low | P35: =AE$18 -> 4 | Q35: =AF$16 -> 0.5 | R35: 21 | S35: 137 | T35: =82+56 -> 138 | U35: 0.007299270073 | V35: FALSE | W35: 136.36 | X35: -0.004671532847 | Y35: FALSE | Z35: FALSE | AA35: Low | AB35: 4 | AC35: 0.5
A36: FSW/FLC | B36: =fsw_div_fLC -> 54.48665487 | N36: Low41 | O36: Low | P36: =AE$18 -> 4 | Q36: =AF$17 -> 1 | R36: 22 | S36: 174 | T36: =180 -> 180 | U36: 0.03448275862 | V36: FALSE | W36: 180 | X36: 0.03448275862 | Y36: FALSE | Z36: FALSE | AA36: Low | AB36: 4 | AC36: 1
N37: Low42 | O37: Low | P37: =AE$18 -> 4 | Q37: =AF$18 -> 2 | R37: 23 | S37: 243 | T37: 270 | U37: 0.1111111111 | V37: FALSE | W37: 270 | X37: 0.1111111111 | Y37: FALSE | Z37: FALSE | AA37: Low | AB37: 4 | AC37: 2
N38: Low44 | O38: Low | P38: =AE$18 -> 4 | Q38: =AF$19 -> 4 | R38: 24 | S38: 412 | T38: 390 | U38: -0.05339805825 | V38: FALSE | W38: 390 | X38: -0.05339805825 | Y38: FALSE | Z38: FALSE | AA38: Low | AB38: 4 | AC38: 4
N39: High21 | O39: =AD$16 -> High | P39: =AE$17 -> 2 | Q39: =AF$17 -> 1 | R39: 25 | S39: n/a | T39: n/a | Z39: =S39=R_mode -> FALSE | AA39: High | AB39: 2 | AC39: 1
A40: =1/(2*PI()*SQRT(([0]!Lout*(1-Tol_L))*[0]!Cout*10^-12)) ->  | Z40: =OR(Z15:Z39) -> TRUE

Sheet Std. R and C Values (hidden)
A1: Hide Sheet
E2: Std. Resistors | J2: Capacitors
B3: Enter resistor value | C3: 25 | E3: E6 | G3: E96 | J3: Cap value | K3: 1500 | L3: pF
E4: 100 | F4: 150 | G4: 100 | H4: 102 | K4: =IF(K3*10^12<10000,IF((10^(LOG(K3*10^12)-INT(LOG(K3*10^12))))-VLOOKUP((10^(LOG(K3*10^12)-INT(LOG(K3*10^12)))),c_s1:C_f1,1)<VLOOKUP((10^(LOG(K3*10^12)-INT(LOG(K3*10^12)))),c_s1:C_f1,2)-(10^(LOG(K3*10^12)-INT(LOG(K3*10^12)))),VLOOKUP((10^(LOG(K3*10^12)-INT(LOG(K3*10^12)))),c_s1:C_f1,1),VLOOKUP((10^(LOG(K3*10^12)-INT(LOG(K3*10^12)))),c_s1:C_f1,2))*10^INT(LOG(K3*10^12)),IF((10^(LOG(K3*10^12)-INT(LOG(K3*10^12))))-VLOOKUP((10^(LOG(K3*10^12)-INT(LOG(K3*10^12)))),C_s2:C_f2,1)<VLOOKUP((10^(LOG(K3*10^12)-INT(LOG(K3*10^12)))),C_s2:C_f2,2)-(10^(LOG(K3*10^12)-INT(LOG(K3*10^12)))),VLOOKUP((10^(LOG(K3*10^12)-INT(LOG(K3*10^12)))),C_s2:C_f2,1),VLOOKUP((10^(LOG(K3*10^12)-INT(LOG(K3*10^12)))),C_s2:C_f2,2))*10^INT(LOG(K3*10^12)))*10^-12 -> 1500 | L4: pF
B5: Closest E6 Value | C5: =(IF((10^(LOG(C3)-INT(LOG(C3)))*100)-VLOOKUP((10^(LOG(C3)-INT(LOG(C3)))*100),E6_s:E6_f,1)<VLOOKUP((10^(LOG(C3)-INT(LOG(C3)))*100),E6_s:E6_f,2)-(10^(LOG(C3)-INT(LOG(C3)))*100),VLOOKUP((10^(LOG(C3)-INT(LOG(C3)))*100),E6_s:E6_f,1),VLOOKUP((10^(LOG(C3)-INT(LOG(C3)))*100),E6_s:E6_f,2)))*10^INT(LOG(C3))/100 -> 22 | E5: 150 | F5: 220 | G5: 102 | H5: 105
B6: Closest E12 Value | C6: =(IF((10^(LOG(C3)-INT(LOG(C3)))*100)-VLOOKUP((10^(LOG(C3)-INT(LOG(C3)))*100),E12_s:E12_f,1)<VLOOKUP((10^(LOG(C3)-INT(LOG(C3)))*100),E12_s:E12_f,2)-(10^(LOG(C3)-INT(LOG(C3)))*100),VLOOKUP((10^(LOG(C3)-INT(LOG(C3)))*100),E12_s:E12_f,1),VLOOKUP((10^(LOG(C3)-INT(LOG(C3)))*100),E12_s:E12_f,2)))*10^INT(LOG(C3))/100 -> 27 | E6: 220 | F6: 330 | G6: 105 | H6: 107 | J6: C values up to 10nF
B7: Closest E24 Value | C7: =(IF((10^(LOG(C3)-INT(LOG(C3)))*100)-VLOOKUP((10^(LOG(C3)-INT(LOG(C3)))*100),E24_s:E24_f,1)<VLOOKUP((10^(LOG(C3)-INT(LOG(C3)))*100),E24_s:E24_f,2)-(10^(LOG(C3)-INT(LOG(C3)))*100),VLOOKUP((10^(LOG(C3)-INT(LOG(C3)))*100),E24_s:E24_f,1),VLOOKUP((10^(LOG(C3)-INT(LOG(C3)))*100),E24_s:E24_f,2)))*10^INT(LOG(C3))/100 -> 24 | E7: 330 | F7: 470 | G7: 107 | H7: 110 | J7: 1 | K7: 1.2 | L7: =IF((10^(LOG(K3)-INT(LOG(K3))))-VLOOKUP((10^(LOG(K3)-INT(LOG(K3)))),c_s1:C_f1,1)<VLOOKUP((10^(LOG(K3)-INT(LOG(K3)))),c_s1:C_f1,2)-(10^(LOG(K3)-INT(LOG(K3)))),VLOOKUP((10^(LOG(K3)-INT(LOG(K3)))),c_s1:C_f1,1),VLOOKUP((10^(LOG(K3)-INT(LOG(K3)))),c_s1:C_f1,2)) -> 1.5
B8: Closest E48 Value | C8: =(IF((10^(LOG(C3)-INT(LOG(C3)))*100)-VLOOKUP((10^(LOG(C3)-INT(LOG(C3)))*100),E48_s:E48_f,1)<VLOOKUP((10^(LOG(C3)-INT(LOG(C3)))*100),E48_s:E48_f,2)-(10^(LOG(C3)-INT(LOG(C3)))*100),VLOOKUP((10^(LOG(C3)-INT(LOG(C3)))*100),E48_s:E48_f,1),VLOOKUP((10^(LOG(C3)-INT(LOG(C3)))*100),E48_s:E48_f,2)))*10^INT(LOG(C3))/100 -> 24.9 | E8: 470 | F8: 680 | G8: 110 | H8: 113 | J8: 1.2 | K8: 1.5
B9: Closest E96 Value | C9: =(IF((10^(LOG(C3)-INT(LOG(C3)))*100)-VLOOKUP((10^(LOG(C3)-INT(LOG(C3)))*100),E96_s:E96_f,1)<VLOOKUP((10^(LOG(C3)-INT(LOG(C3)))*100),E96_s:E96_f,2)-(10^(LOG(C3)-INT(LOG(C3)))*100),VLOOKUP((10^(LOG(C3)-INT(LOG(C3)))*100),E96_s:E96_f,1),VLOOKUP((10^(LOG(C3)-INT(LOG(C3)))*100),E96_s:E96_f,2)))*10^INT(LOG(C3))/100 -> 24.9 | E9: 680 | F9: 1000 | G9: 113 | H9: 115 | J9: 1.5 | K9: 1.8 | P9: Notes: | Q9: If I use the value in column K it rounds up
E10: E12 | G10: 115 | H10: 118 | J10: 1.8 | K10: 2.2 | Q10: If I use the value in column J it rounds down
E11: 100 | F11: 120 | G11: 118 | H11: 121 | J11: 2.2 | K11: 2.7
E12: 120 | F12: 150 | G12: 121 | H12: 124 | J12: 2.7 | K12: 3.3
E13: 150 | F13: 180 | G13: 124 | H13: 127 | J13: 3.3 | K13: 3.9
E14: 180 | F14: 220 | G14: 127 | H14: 130 | J14: 3.9 | K14: 4.7
E15: 220 | F15: 270 | G15: 130 | H15: 133 | J15: 4.7 | K15: 5.6
E16: 270 | F16: 330 | G16: 133 | H16: 137 | J16: 5.6 | K16: 6.8
E17: 330 | F17: 390 | G17: 137 | H17: 140 | J17: 6.8 | K17: 8.2
E18: 390 | F18: 470 | G18: 140 | H18: 143 | J18: 8.2 | K18: 10
E19: 470 | F19: 560 | G19: 143 | H19: 147 | J19: C values greater than 10nF
E20: 560 | F20: 680 | G20: 147 | H20: 150 | J20: 1 | K20: 1.5 | L20: =IF((10^(LOG(K3)-INT(LOG(K3))))-VLOOKUP((10^(LOG(K3)-INT(LOG(K3)))),C_s2:C_f2,1)<VLOOKUP((10^(LOG(K3)-INT(LOG(K3)))),C_s2:C_f2,2)-(10^(LOG(K3)-INT(LOG(K3)))),VLOOKUP((10^(LOG(K3)-INT(LOG(K3)))),C_s2:C_f2,1),VLOOKUP((10^(LOG(K3)-INT(LOG(K3)))),C_s2:C_f2,2)) -> 1.5
E21: 680 | F21: 820 | G21: 150 | H21: 154 | J21: 1.5 | K21: 2.2
E22: 820 | F22: 1000 | G22: 154 | H22: 158 | J22: 2.2 | K22: 3.3
E23: E24 | G23: 158 | H23: 162 | J23: 3.3 | K23: 4.7
E24: 100 | F24: 110 | G24: 162 | H24: 165 | J24: 4.7 | K24: 6.8
E25: 110 | F25: 120 | G25: 165 | H25: 169 | J25: 6.8 | K25: 10
E26: 120 | F26: 130 | G26: 169 | H26: 174
E27: 130 | F27: 150 | G27: 174 | H27: 178
E28: 150 | F28: 160 | G28: 178 | H28: 182
E29: 160 | F29: 180 | G29: 182 | H29: 187
E30: 180 | F30: 200 | G30: 187 | H30: 191
E31: 200 | F31: 220 | G31: 191 | H31: 196
E32: 220 | F32: 240 | G32: 196 | H32: 200
E33: 240 | F33: 270 | G33: 200 | H33: 205
E34: 270 | F34: 300 | G34: 205 | H34: 210
E35: 300 | F35: 330 | G35: 210 | H35: 215
E36: 330 | F36: 360 | G36: 215 | H36: 221
E37: 360 | F37: 390 | G37: 221 | H37: 226
E38: 390 | F38: 430 | G38: 226 | H38: 232
E39: 430 | F39: 470 | G39: 232 | H39: 237
E40: 470 | F40: 510 | G40: 237 | H40: 243
E41: 510 | F41: 560 | G41: 243 | H41: 249
E42: 560 | F42: 620 | G42: 249 | H42: 255
E43: 620 | F43: 680 | G43: 255 | H43: 261
E44: 680 | F44: 750 | G44: 261 | H44: 267
E45: 750 | F45: 820 | G45: 267 | H45: 274
E46: 820 | F46: 910 | G46: 274 | H46: 280
E47: 910 | F47: 1000 | G47: 280 | H47: 287
E48: E48 | G48: 287 | H48: 294
E49: 100 | F49: 105 | G49: 294 | H49: 301
E50: 105 | F50: 110 | G50: 301 | H50: 309
E51: 110 | F51: 115 | G51: 309 | H51: 316
E52: 115 | F52: 121 | G52: 316 | H52: 324
E53: 121 | F53: 127 | G53: 324 | H53: 332
E54: 127 | F54: 133 | G54: 332 | H54: 340
E55: 133 | F55: 140 | G55: 340 | H55: 348
E56: 140 | F56: 147 | G56: 348 | H56: 357
E57: 147 | F57: 154 | G57: 357 | H57: 365
E58: 154 | F58: 162 | G58: 365 | H58: 374
E59: 162 | F59: 169 | G59: 374 | H59: 383
E60: 169 | F60: 178 | G60: 383 | H60: 392
E61: 178 | F61: 187 | G61: 392 | H61: 402
E62: 187 | F62: 196 | G62: 402 | H62: 412
E63: 196 | F63: 205 | G63: 412 | H63: 422
E64: 205 | F64: 215 | G64: 422 | H64: 432
E65: 215 | F65: 226 | G65: 432 | H65: 442
E66: 226 | F66: 237 | G66: 442 | H66: 453
E67: 237 | F67: 249 | G67: 453 | H67: 464
E68: 249 | F68: 261 | G68: 464 | H68: 475
E69: 261 | F69: 274 | G69: 475 | H69: 487
E70: 274 | F70: 287 | G70: 487 | H70: 499
E71: 287 | F71: 301 | G71: 499 | H71: 511
E72: 301 | F72: 316 | G72: 511 | H72: 523
E73: 316 | F73: 332 | G73: 523 | H73: 536
E74: 332 | F74: 348 | G74: 536 | H74: 549
E75: 348 | F75: 365 | G75: 549 | H75: 562
E76: 365 | F76: 383 | G76: 562 | H76: 576
E77: 383 | F77: 402 | G77: 576 | H77: 590
E78: 402 | F78: 422 | G78: 590 | H78: 604
E79: 422 | F79: 442 | G79: 604 | H79: 619
E80: 442 | F80: 464 | G80: 619 | H80: 634
E81: 464 | F81: 487 | G81: 634 | H81: 649
E82: 487 | F82: 511 | G82: 649 | H82: 665
E83: 511 | F83: 536 | G83: 665 | H83: 681
E84: 536 | F84: 562 | G84: 681 | H84: 698
E85: 562 | F85: 590 | G85: 698 | H85: 715
E86: 590 | F86: 619 | G86: 715 | H86: 732
E87: 619 | F87: 649 | G87: 732 | H87: 750
E88: 649 | F88: 681 | G88: 750 | H88: 768
E89: 681 | F89: 715 | G89: 768 | H89: 787
E90: 715 | F90: 750 | G90: 787 | H90: 806
E91: 750 | F91: 787 | G91: 806 | H91: 825
E92: 787 | F92: 825 | G92: 825 | H92: 845
E93: 825 | F93: 866 | G93: 845 | H93: 866
E94: 866 | F94: 909 | G94: 866 | H94: 887
E95: 909 | F95: 953 | G95: 887 | H95: 909
E96: 953 | F96: 1000 | G96: 909 | H96: 931
G97: 931 | H97: 953
G98: 953 | H98: 976
G99: 976 | H99: 1000

Sheet Schematic Checklist (hidden)
A1: Pin | B1: Name | C1: Purpose | D1: Connection For Functional Use | E1: Reasoning | F1: Recommended Component Values from Calculator | G1: Component units | H1: Status | I1: Comments
A2: Control
A3: 1 | B3: VFB | C3: Output feedback input | D3: Ensure that the feedback divider network gives the appropriate Vout based on the Vref chosen | F3: =CONCATENATE(partData!A20, partData!A21) -> Top Resistor: 4.99 Bottom Resistor: 4.99 | G3: =DeviceCalculator!G112 -> kΩ | H3: Open
A4: 1 | B4: VFB | C4: Output feedback input | D4: Use 1% or better resistors for VFB | H4: Open
A5: 1 | B5: VFB | C5: Output feedback input | D5: If the application has ferrite beads, ensure that the output is take after the ferrite bead. This will adjust the converter for the DC drop across the ferrite bead. | E5: It is necessary that the LC resonance of ferrite bead-cap is away from the LC resonance of inductor-Cout. If they resonate at the same frequency then a huge amount of noise can be passed through to the output. | H5: Open
A8: Configuration
A9: 2 | B9: EN | C9: Enable pin | D9: The recommended max voltage rating on the EN pin is 6.5V. Do not connect EN pin directly to VIN or VDD (unless the max Vin & VDD for your application is below 6.5V). When using VIN or VDD to drive the EN pin, use a resistor divider and ensure that the voltage stays below 6.5V. | E9: Typical turnon threshold voltage is 1.2 V. Typical turnoff threshold voltage is 0.95 V. | H9: Open
A10: 20 | B10: MODE | C10: Soft-start and Skip/CCM selection | D10: Connect a resistor to select soft-start time using Table 3. The soft-start time is detected and stored into internal register during start-up. | F10: =CONCATENATE(DeviceCalculator!#REF!,VLOOKUP(DeviceCalculator!#REF!,partData!B18:C21,2,0)) ->  | G10: =DeviceCalculator!G131 -> kΩ | H10: Open
A11: 20 | B11: MODE | C11: Soft-start and Skip/CCM selection | D11: You must connect the MODE pin to PGOOD pin of the IC if you wanted FCCM operation. Note that it is connected to PGOOD pin and not after the pull up resistor etc. | E11: You cannot connect the MODE pin resistor to VREG etc. This is because the IC senses the resistance on the MODE pin when it is low (before PGOOD becomes active). | H11: Open
A12: 22 | B12: RF | C12: Switching frequency selection | D12: Follow the recommendations in table 1 to select the switching frequency. Use 1% or better resistors for the RF selection resistor | F12: =CONCATENATE(DeviceCalculator!D39,VLOOKUP(DeviceCalculator!#REF!,partData!B20:C23,2,0)) ->  | G12: =DeviceCalculator!G39 -> kΩ | H12: Open
A13: 3 | B13: PGOOD | C13: Open drain power good flag | D13: Have a 100k resistor connected between the pin to VREG | F13: 100 | G13: kΩ | H13: Open
A14: 21 | B14: TRIP | C14: OCL detection threshold setting pin | D14: Use WEBENCH to calculate the RTRIP resistor value. Use 1% or better resistors for RTRIP | F14: =DeviceCalculator!#REF! ->  | G14: =DeviceCalculator!#REF! ->  | H14: Open
A17: Power Stage
A18: 4 | B18: VBST | C18: Supply input for high-side FET gate driver (boost terminal) | D18: Connect capacitor from this pin to LL node. Internally connected to VREG via bootstrap MOSFET switch. The boot capacitor should be >25V rated, X5R. Preferable to use a 0603. | H18: Open
A19: 4 | B19: VBST | C19: Supply input for high-side FET gate driver (boost terminal) | D19: An 0402 size, 0 to 2 Ohm resistor in can be placed in series with Boot Capacitor to decrease noise from aggressive switching. | H19: Open
A20: 6, 7, 8, 9, 10, 11 | B20: LL | C20: Output of converted power. | D20: Connect this pin to the output Inductor. | H20: Open
A21: 6, 7, 8, 9, 10, 11 | B21: LL | C21: Output of converted power. | D21: Snubber Capacitor: 1.0nF 0603 minimum 25V Snubber Resistor: 0805 1-ohm resistor from SW to PGND “Snubber” | F21: 1.0 1.0 | G21: nF Ω | H21: Open
A22: 12, 13, 14, 15, 16, 17 | B22: VIN | C22: Conversion power input | D22: The input capacitor Cin should be able to give minimum ripple voltage desired for the application. Use WEBENCH to calculate the input capacitance or follow datasheet calculations. | F22: =DeviceCalculator!D106 -> 4.7 | G22: =DeviceCalculator!G106 -> µF | H22: Open
A23: 12, 13, 14, 15, 16, 17 | B23: VIN | C23: Conversion power input | D23: Add multiple (preferable 6) 2.2nF-10nF 0402 minimum 25V input capacitor from PVIN to PGND to minimize high-frequency ringing energy | H23: Open
A24: 12, 13, 14, 15, 16, 17 | B24: VIN | C24: Conversion power input | D24: Add a 1x1uF capacitor to the input capacitor bank. | H24: Open
A25: N/A | B25: Lout | C25: Output inductor | D25: Use the recommended capacitance in WEBENCH or calculator or use datasheet calculations to meet design requirements | F25: =DeviceCalculator!#REF! ->  | G25: =DeviceCalculator!#REF! ->  | H25: Open
A26: N/A | B26: Cout | C26: Output capacitors | D26: Use the recommended capacitance in WEBENCH or calculator or use datasheet calculations to meet ripple and transient requirements | F26: =DeviceCalculator!D68 -> 159.1549431 | G26: =DeviceCalculator!G68 -> µF | H26: Open
A27: N/A | B27: Cout | C27: Output capacitors | D27: Cout Capacitor type is very important when designing with this part – Preferrable to use Electrolytics with ESR that is high enough. When organic semiconductor (OS-CON) or specialty polymer (SP-CAP) capacitors are used, the ESR should satisfy Eqn 6 given in the datasheet. If Electrolytics with sufficient ESR is used, then you don’t need a ripple injection circuit | H27: Open
A28: N/A | B28: Cout, Cinj | C28: Output capacitors, input capacitors | D28: If only ceramics are used at the output (to minimize ripple), you will need a ripple injection circuit. Please refer to datasheet section 8.2.2.2.2 | H28: Open
A29: N/A | B29: Cout, Cinj | C29: Output capacitors, input capacitors | D29: When using ripple injection, ensure the voltage rating of the ripple injection capacitor is sufficient – typically 50V caps will be used – to ensure that the caps are not derated at the operating condition. | H29: Open
A32: On Chip Regulator
A33: 19 | B33: VDD | C33: Controller power supply input. | D33: If VIN will be operating between 4.5V and 15V, connect VDD to VIN. Bypass the VDD pin to ground using a 4.7uF cap minimum. Ensure that the voltage rating and size are sufficient that the capacitor is not derated. Please use WEBENCH to get component information. | F33: 4.7 | G33: uF | H33: Open
A34: 19 | B34: VDD | C34: Controller power supply input. | D34: If VIN will be operating below 4.5V, connect VDD to another source that will be between 4.5V and 25V. Bypass the VDD pin to ground using a 4.7uF cap minimum. Ensure that the voltage rating and size are sufficient that the capacitor is not derated. | F34: 4.7 | G34: uF | H34: Open
A35: 18 | B35: VREG | C35: 5-V LDO output, supplies the internal analog circuitry and driver circuitry. | D35: Connect a min 1uF, 16V, X5R, 0402 (min size) capacitor. Ensure that the voltage rating and size are sufficient that the capacitor is not derated. | E35: Do not use 10V rated capacitors. The DC bias loss of capacitance on a 10V cap operating at 5V output is pretty severe and could compromise the stability of the LDO. | F35: 1 | G35: uF | H35: Open
A38: Misc
A39: 5 | B39: N/C | C39: No Connect | D39: Do not connect this pin to anything, leave floating | H39: Open

Sheet Layout Checklist (hidden)
A1: Pin | B1: Name | C1: Purpose | D1: Placement or Routing? | E1: Remarks | F1: Reasoning | G1: Status | H1: Comments
A2: Control
A3: 1 | B3: VFB | C3: Output feedback input | D3: Routing | E3: The trace from the resistor divider to the VFB pin should be short and thin. Avoid routing near noisy signals or power planes. | G3: Open
A6: Configuration
A7: 2 | B7: EN | C7: Enable pin | D7: Routing | E7: All routing for the EN pin should be placed away from any high voltage switch node (itself and others), such as LL and VBST to avoid noise coupling. | G7: Open
A8: 20, 21, 22 | B8: RF, TRIP, MODE | D8: Placement | E8: Place the frequency setting resistor (RF), OCP setting resistor (RTRIP) and mode setting resistor (RMODE) as close to the device as possible. Use the common GND via to connect them to the GND plane. Route all of these traces away from the switch node and other noisy signals | G8: Open
A9: 3 | B9: PGOOD | C9: Open drain power good flag | D9: Placement | E9: Keep the PGOOD resistor local to the device and place it as close as possible to the PGOOD pin. The resistor should be kept away from fast switching voltage and current paths. | G9: Open
A12: Power Stage
A13: 4 | B13: VBST | C13: Supply input for high-side FET gate driver (boost terminal) | D13: Placement | E13: Place the boot resistor (if used) as close as possible to the pin, followed by the boot capacitor. Route these separate from the SW copper plane. | G13: Open
A14: 6, 7, 8, 9, 10, 11 | B14: LL | C14: Output of converted power. | D14: Routing | E14: The PCB trace defined as switch node, which connects the LL pins and high-voltage side of the inductor, should be as short and wide as possible. | G14: Open
A15: 6, 7, 8, 9, 10, 11 | B15: LL | C15: Output of converted power. | D15: Routing | E15: Use separated vias or trace to connect LL node to snubber, boot strap capacitor and ripple injection resistor. Do not combine these connections. | G15: Open
A16: 12, 13, 14, 15, 16, 17 | B16: VIN | C16: Conversion power input | D16: Placement | E16: Place the VIN decoupling capacitors as close to the VIN and PGND pins as possible to minimize the input AC current loop. | G16: Open
A17: 12, 13, 14, 15, 16, 17 | B17: VIN | C17: Conversion power input | D17: Placement | E17: Additionally, a high-frequency bypass capacitor in 0402 package on the VIN pins can be placed right underneath the IC on the other side of the PCB to reduce switching spikes and associated noise. | G17: Open
A20: On Chip Regulator
A21: 19 | B21: VDD | C21: Input Voltage for analog control circuitry. | D21: Routing | E21: VDD should be connected to VIN (or other source if applicable) through a trace from the input copper area. To avoid high frequency noise on VDD, it is recommended to keep the VDD to VIN connection as short as possible to keep the parasitic inductance low. | G21: Open
A22: 19 | B22: VDD | C22: Controller power supply input. | D22: Placement | E22: Place the VDD decoupling capacitor as close to the device as possible. Ensure to provide GND vias for the decoupling capacitor and make the loop as small as possible. | G22: Open
A23: 18 | B23: VREG | C23: 5-V LDO output, supplies the internal analog circuitry and driver circuitry. | D23: Placement | E23: Place the VREG decoupling capacitor as close to the device as possible. Ensure to provide GND vias for the decoupling capacitor and make the loop as small as possible. | G23: Open
A26: Misc
A27: N/A | B27: Sensitive Pins | D27: Routing | E27: All sensitive analog traces and components such as VFB, PGOOD, TRIP, MODE and RF should be placed away from high-voltage switching nodes such as LL, VBST to avoid coupling. Use internal layer(s) as ground plane(s) and shield feedback trace from power traces and components. | G27: Open
A28: N/A | B28: Cin, Cout, L, IC | D28: Placement | E28: The power components (including input/output capacitors, inductor and TPS53353) should be placed on one side of the PCB (solder side). At least one inner plane should be inserted, connected to ground, in order to shield and isolate the small signal traces from noisy power lines. | G28: Open

Sheet Extra (hidden)
B2: Validation Options
B3: Open
B4: Complete
B5: Not Applicable
